[Event "Titled Tuesday Blitz August 09 Early 2022"]
[White "Aradhya, Garg"]
[Black "Vifleemskaia, Svetlana"]
[WhiteFideId "25006746"]
[BlackFideId "4129490"]
[WhiteElo "2203"]
[BlackElo "1929"]
[Result "1/2-1/2"]
[Round "03"]
[TimeControl "180+1"]
[Date "2022.08.09"]
[WhiteClock "0:00:13"]
[BlackClock "0:00:10"]

1. d4 {[%clk 0:03:00]}  Nf6 {[%clk 0:02:58]} 2. c4 {[%clk 0:02:59]}  e6 {[%clk 0:02:58]} 3. Nf3 {[%clk 0:02:59]}  Bb4+ {[%clk 0:02:58]} 4. Nbd2 {[%clk 0:02:57]}  b6 {[%clk 0:02:57]} 5. a3 {[%clk 0:02:56]}  Bxd2+ {[%clk 0:02:56]} 6. Qxd2 {[%clk 0:02:57]}  Bb7 {[%clk 0:02:57]} 7. e3 {[%clk 0:02:57]}  d6 {[%clk 0:02:56]} 8. Bd3 {[%clk 0:02:58]}  Ne4 {[%clk 0:02:56]} 9. Qc2 {[%clk 0:02:58]}  f5 {[%clk 0:02:56]} 10. O-O {[%clk 0:02:55]}  Nd7 {[%clk 0:02:56]} 11. b4 {[%clk 0:02:53]}  c5 {[%clk 0:02:54]} 12. d5 {[%clk 0:02:52]}  exd5 {[%clk 0:02:46]} 13. cxd5 {[%clk 0:02:53]}  Bxd5 {[%clk 0:02:45]} 14. Rd1 {[%clk 0:02:53]}  O-O {[%clk 0:02:40]} 15. Bb2 {[%clk 0:02:18]}  Ndf6 {[%clk 0:02:20]} 16. bxc5 {[%clk 0:02:15]}  Rc8 {[%clk 0:02:11]} 17. Nd4 {[%clk 0:02:08]}  Rxc5 {[%clk 0:02:00]} 18. Qe2 {[%clk 0:02:06]}  g6 {[%clk 0:01:54]} 19. Rac1 {[%clk 0:01:48]}  Qe7 {[%clk 0:01:52]} 20. f3 {[%clk 0:01:44]}  Rxc1 {[%clk 0:01:48]} 21. Rxc1 {[%clk 0:01:44]}  Nc5 {[%clk 0:01:48]} 22. Bc4 {[%clk 0:01:42]}  Bxc4 {[%clk 0:01:45]} 23. Qxc4+ {[%clk 0:01:42]}  d5 {[%clk 0:01:45]} 24. Qe2 {[%clk 0:01:42]}  Re8 {[%clk 0:01:44]} 25. Nc6 {[%clk 0:01:41]}  Qe6 {[%clk 0:01:36]} 26. Nb4 {[%clk 0:01:34]}  Kf7 {[%clk 0:01:27]} 27. Bd4 {[%clk 0:01:29]}  f4 {[%clk 0:01:09]} 28. Bxc5 {[%clk 0:01:20]}  bxc5 {[%clk 0:01:08]} 29. Rxc5 {[%clk 0:01:21]}  fxe3 {[%clk 0:00:44]} 30. Rc7+ {[%clk 0:01:17]}  Re7 {[%clk 0:00:43]} 31. Rxe7+ {[%clk 0:01:16]}  Qxe7 {[%clk 0:00:35]} 32. Nc2 {[%clk 0:01:16]}  Qc5 {[%clk 0:00:23]} 33. Nxe3 {[%clk 0:01:13]}  Qxa3 {[%clk 0:00:20]} 34. Qd2 {[%clk 0:01:10]}  Qc5 {[%clk 0:00:19]} 35. Kf1 {[%clk 0:01:07]}  a5 {[%clk 0:00:18]} 36. Nc2 {[%clk 0:00:57]}  Qc4+ {[%clk 0:00:17]} 37. Kf2 {[%clk 0:00:56]}  a4 {[%clk 0:00:17]} 38. Ne3 {[%clk 0:00:53]}  Qc5 {[%clk 0:00:16]} 39. Qc2 {[%clk 0:00:49]}  Qxc2+ {[%clk 0:00:15]} 40. Nxc2 {[%clk 0:00:50]}  Ke6 {[%clk 0:00:15]} 41. Ke3 {[%clk 0:00:50]}  Kd6 {[%clk 0:00:14]} 42. Kd4 {[%clk 0:00:50]}  h5 {[%clk 0:00:11]} 43. h4 {[%clk 0:00:48]}  Nd7 {[%clk 0:00:11]} 44. Nb4 {[%clk 0:00:47]}  Nb6 {[%clk 0:00:10]} 45. g4 {[%clk 0:00:47]}  a3 {[%clk 0:00:09]} 46. Kc3 {[%clk 0:00:41]}  Nc4 {[%clk 0:00:08]} 47. Kb3 {[%clk 0:00:39]}  Ke5 {[%clk 0:00:08]} 48. gxh5 {[%clk 0:00:38]}  gxh5 {[%clk 0:00:08]} 49. f4+ {[%clk 0:00:38]}  Ke4 {[%clk 0:00:07]} 50. f5 {[%clk 0:00:38]}  Kxf5 {[%clk 0:00:06]} 51. Nxd5 {[%clk 0:00:38]}  Kg4 {[%clk 0:00:06]} 52. Kxc4 {[%clk 0:00:18]}  a2 {[%clk 0:00:06]} 53. Ne3+ {[%clk 0:00:18]}  Kxh4 {[%clk 0:00:06]} 54. Nc2 {[%clk 0:00:19]}  Kg3 {[%clk 0:00:07]} 55. Kb3 {[%clk 0:00:17]}  a1=Q {[%clk 0:00:06]} 56. Nxa1 {[%clk 0:00:17]}  h4 {[%clk 0:00:07]} 57. Nc2 {[%clk 0:00:16]}  h3 {[%clk 0:00:08]} 58. Ne3 {[%clk 0:00:15]}  Kf2 {[%clk 0:00:08]} 59. Ng4+ {[%clk 0:00:14]}  Kf3 {[%clk 0:00:08]} 60. Nh2+ {[%clk 0:00:14]}  Kg2 {[%clk 0:00:08]} 61. Ng4 {[%clk 0:00:14]}  Kg3 {[%clk 0:00:09]} 62. Ne3 {[%clk 0:00:13]}  Kf2 {[%clk 0:00:08]} 63. Ng4+ {[%clk 0:00:13]}  Kf3 {[%clk 0:00:09]} 64. Nh2+ {[%clk 0:00:13]}  Kg3 {[%clk 0:00:09]} 65. Nf1+ {[%clk 0:00:13]}  Kg2 {[%clk 0:00:10]} 66. Ne3+ {[%clk 0:00:13]}  Kf2 {[%clk 0:00:10]} 1/2-1/2


[Site "https://www.chess.com"]

[Event "Titled Tuesday Blitz August 09 Early 2022"]
[White "Atakhan, Abtin"]
[Black "Samadov, Read"]
[WhiteFideId "22502203"]
[BlackFideId "13417444"]
[WhiteElo "2698"]
[BlackElo "2934"]
[Result "1-0"]
[Round "03"]
[TimeControl "180+1"]
[Date "2022.08.09"]
[WhiteClock "0:00:28"]
[BlackClock "0:00:15"]

1. d4 {[%clk 0:03:00]}  Nf6 {[%clk 0:02:59]} 2. c4 {[%clk 0:02:56]}  e6 {[%clk 0:03:00]} 3. Nf3 {[%clk 0:02:55]}  d5 {[%clk 0:02:59]} 4. Nc3 {[%clk 0:02:56]}  Bb4 {[%clk 0:02:59]} 5. Bg5 {[%clk 0:02:55]}  h6 {[%clk 0:02:59]} 6. Bxf6 {[%clk 0:02:55]}  Qxf6 {[%clk 0:03:00]} 7. e3 {[%clk 0:02:56]}  O-O {[%clk 0:02:59]} 8. Rc1 {[%clk 0:02:56]}  Nc6 {[%clk 0:02:59]} 9. cxd5 {[%clk 0:02:50]}  exd5 {[%clk 0:02:59]} 10. a3 {[%clk 0:02:51]}  Bxc3+ {[%clk 0:02:59]} 11. Rxc3 {[%clk 0:02:52]}  Qd6 {[%clk 0:02:59]} 12. Qc2 {[%clk 0:02:50]}  Ne7 {[%clk 0:02:58]} 13. Bd3 {[%clk 0:02:43]}  c6 {[%clk 0:02:58]} 14. O-O {[%clk 0:02:41]}  g6 {[%clk 0:02:58]} 15. Ne5 {[%clk 0:02:40]}  Bf5 {[%clk 0:02:56]} 16. b4 {[%clk 0:02:39]}  Bxd3 {[%clk 0:02:56]} 17. Nxd3 {[%clk 0:02:30]}  Nf5 {[%clk 0:02:51]} 18. Rb1 {[%clk 0:02:27]}  a6 {[%clk 0:02:42]} 19. a4 {[%clk 0:02:26]}  h5 {[%clk 0:02:01]} 20. b5 {[%clk 0:02:18]}  cxb5 {[%clk 0:02:00]} 21. axb5 {[%clk 0:02:19]}  a5 {[%clk 0:02:00]} 22. b6 {[%clk 0:02:12]}  Ra6 {[%clk 0:01:49]} 23. Nc5 {[%clk 0:02:07]}  Rxb6 {[%clk 0:01:48]} 24. Rxb6 {[%clk 0:02:06]}  Qxb6 {[%clk 0:01:46]} 25. Nd7 {[%clk 0:02:06]}  Qb5 {[%clk 0:01:19]} 26. Nxf8 {[%clk 0:02:06]}  Kxf8 {[%clk 0:01:20]} 27. Rc5 {[%clk 0:02:03]}  Qb4 {[%clk 0:01:15]} 28. h3 {[%clk 0:01:52]}  a4 {[%clk 0:01:09]} 29. Rxd5 {[%clk 0:01:49]}  Kg7 {[%clk 0:01:04]} 30. Qa2 {[%clk 0:01:41]}  a3 {[%clk 0:00:54]} 31. Rd7 {[%clk 0:01:40]}  Nd6 {[%clk 0:00:54]} 32. Qd5 {[%clk 0:01:35]}  Qb1+ {[%clk 0:00:35]} 33. Kh2 {[%clk 0:01:34]}  a2 {[%clk 0:00:21]} 34. Qxd6 {[%clk 0:01:18]}  Qf5 {[%clk 0:00:21]} 35. Rd8 {[%clk 0:00:38]}  a1=Q {[%clk 0:00:15]} 36. Qf8+ {[%clk 0:00:38]}  Kf6 {[%clk 0:00:15]} 37. Rd6+ {[%clk 0:00:33]}  Qe6 {[%clk 0:00:15]} 38. Rxe6+ {[%clk 0:00:31]}  Kxe6 {[%clk 0:00:16]} 39. Qc8+ {[%clk 0:00:31]}  Kf6 {[%clk 0:00:16]} 40. Qxb7 {[%clk 0:00:30]}  Qe1 {[%clk 0:00:17]} 41. Qf3+ {[%clk 0:00:30]}  Kg7 {[%clk 0:00:17]} 42. d5 {[%clk 0:00:29]}  Qd2 {[%clk 0:00:17]} 43. e4 {[%clk 0:00:29]}  Qd4 {[%clk 0:00:18]} 44. h4 {[%clk 0:00:28]}  Qe5+ {[%clk 0:00:17]} 45. g3 {[%clk 0:00:28]}  f6 {[%clk 0:00:17]} 46. Kg2 {[%clk 0:00:28]}  Kh6 {[%clk 0:00:15]} 47. Qf4+ {[%clk 0:00:28]} 1-0


[Site "https://www.chess.com"]

[Event "Titled Tuesday Blitz August 09 Early 2022"]
[White "Barp, Alberto"]
[Black "Mikhnenko, Alexander"]
[WhiteFideId "872555"]
[BlackFideId "34143014"]
[WhiteElo "2229"]
[BlackElo "2134"]
[Result "0-1"]
[Round "03"]
[TimeControl "180+1"]
[Date "2022.08.09"]
[WhiteClock "0:00:04"]
[BlackClock "0:00:17"]

1. d4 {[%clk 0:02:44]}  d5 {[%clk 0:02:58]} 2. c4 {[%clk 0:02:35]}  e6 {[%clk 0:02:57]} 3. Nf3 {[%clk 0:02:35]}  c6 {[%clk 0:02:57]} 4. Nc3 {[%clk 0:02:27]}  Nf6 {[%clk 0:02:54]} 5. g3 {[%clk 0:02:04]}  dxc4 {[%clk 0:02:51]} 6. Bg2 {[%clk 0:02:02]}  b5 {[%clk 0:02:49]} 7. Ne5 {[%clk 0:02:00]}  Nd5 {[%clk 0:02:44]} 8. O-O {[%clk 0:02:00]}  Be7 {[%clk 0:02:41]} 9. e4 {[%clk 0:01:56]}  Nxc3 {[%clk 0:02:40]} 10. bxc3 {[%clk 0:01:55]}  O-O {[%clk 0:02:40]} 11. a4 {[%clk 0:01:51]}  Bb7 {[%clk 0:02:37]} 12. Rb1 {[%clk 0:01:42]}  a6 {[%clk 0:02:30]} 13. Nxc4 {[%clk 0:01:40]}  Nd7 {[%clk 0:02:24]} 14. Ne3 {[%clk 0:01:33]}  Qb6 {[%clk 0:02:17]} 15. c4 {[%clk 0:01:29]}  Rfd8 {[%clk 0:02:11]} 16. c5 {[%clk 0:01:18]}  Qc7 {[%clk 0:01:54]} 17. Qc2 {[%clk 0:01:17]}  e5 {[%clk 0:01:47]} 18. Nf5 {[%clk 0:01:17]}  Bf8 {[%clk 0:01:45]} 19. Be3 {[%clk 0:00:59]}  g6 {[%clk 0:01:45]} 20. Nh6+ {[%clk 0:00:26]}  Bxh6 {[%clk 0:01:39]} 21. Bxh6 {[%clk 0:00:27]}  exd4 {[%clk 0:01:32]} 22. f4 {[%clk 0:00:25]}  Qa5 {[%clk 0:01:16]} 23. f5 {[%clk 0:00:21]}  Qc3 {[%clk 0:01:13]} 24. Qf2 {[%clk 0:00:21]}  Rf8 {[%clk 0:00:41]} 25. Bxf8 {[%clk 0:00:17]}  Rxf8 {[%clk 0:00:41]} 26. Rfc1 {[%clk 0:00:14]}  Qe3 {[%clk 0:00:37]} 27. axb5 {[%clk 0:00:11]}  axb5 {[%clk 0:00:31]} 28. Ra1 {[%clk 0:00:11]}  Qxf2+ {[%clk 0:00:27]} 29. Kxf2 {[%clk 0:00:12]}  Ne5 {[%clk 0:00:28]} 30. Ra7 {[%clk 0:00:11]}  Nd3+ {[%clk 0:00:27]} 31. Kf1 {[%clk 0:00:10]}  Nxc1 {[%clk 0:00:25]} 32. Rxb7 {[%clk 0:00:11]}  Rd8 {[%clk 0:00:22]} 33. fxg6 {[%clk 0:00:08]}  hxg6 {[%clk 0:00:22]} 34. Bh3 {[%clk 0:00:08]}  d3 {[%clk 0:00:22]} 35. Rd7 {[%clk 0:00:05]}  Rxd7 {[%clk 0:00:17]} 36. Bxd7 {[%clk 0:00:06]}  d2 {[%clk 0:00:18]} 37. Bg4 {[%clk 0:00:07]}  b4 {[%clk 0:00:18]} 38. Bd1 {[%clk 0:00:06]}  b3 {[%clk 0:00:18]} 39. Bxb3 {[%clk 0:00:04]}  Nxb3 {[%clk 0:00:18]} 40. Ke2 {[%clk 0:00:05]}  Nxc5 {[%clk 0:00:18]} 41. e5 {[%clk 0:00:05]}  Nb3 {[%clk 0:00:17]} 42. g4 {[%clk 0:00:04]}  c5 {[%clk 0:00:17]} 43. h4 {[%clk 0:00:04]}  c4 {[%clk 0:00:17]} 44. Kd1 {[%clk 0:00:05]}  c3 {[%clk 0:00:17]} 45. g5 {[%clk 0:00:04]}  Nd4 {[%clk 0:00:17]} 0-1


[Site "https://www.chess.com"]

[Event "Titled Tuesday Blitz August 09 Early 2022"]
[White "Bharath Subramaniyam H"]
[Black "Krzywda, Andrzej"]
[WhiteFideId "46634827"]
[BlackFideId "1114565"]
[WhiteElo "2346"]
[BlackElo "2098"]
[Result "1-0"]
[Round "03"]
[TimeControl "180+1"]
[Date "2022.08.09"]
[WhiteClock "0:00:10"]
[BlackClock "0:00:14"]

1. e4 {[%clk 0:03:00]}  c5 {[%clk 0:03:00]} 2. Nf3 {[%clk 0:02:59]}  Nc6 {[%clk 0:03:00]} 3. Bb5 {[%clk 0:02:58]}  e5 {[%clk 0:03:00]} 4. O-O {[%clk 0:02:57]}  Bd6 {[%clk 0:03:00]} 5. c3 {[%clk 0:02:57]}  a6 {[%clk 0:03:00]} 6. Ba4 {[%clk 0:02:56]}  b5 {[%clk 0:03:00]} 7. Bc2 {[%clk 0:02:56]}  Nge7 {[%clk 0:02:56]} 8. d4 {[%clk 0:02:56]}  cxd4 {[%clk 0:02:55]} 9. cxd4 {[%clk 0:02:56]}  Nxd4 {[%clk 0:02:53]} 10. Nxd4 {[%clk 0:02:55]}  exd4 {[%clk 0:02:54]} 11. Nd2 {[%clk 0:02:34]}  Qc7 {[%clk 0:02:38]} 12. Nf3 {[%clk 0:02:34]}  O-O {[%clk 0:02:22]} 13. Re1 {[%clk 0:01:38]}  Ng6 {[%clk 0:02:19]} 14. h3 {[%clk 0:01:34]}  Bc5 {[%clk 0:02:03]} 15. a3 {[%clk 0:01:26]}  Bb7 {[%clk 0:01:59]} 16. b4 {[%clk 0:01:26]}  Bb6 {[%clk 0:01:54]} 17. Bb2 {[%clk 0:01:26]}  Qf4 {[%clk 0:01:42]} 18. Bxd4 {[%clk 0:01:22]}  Bxd4 {[%clk 0:01:41]} 19. Qxd4 {[%clk 0:01:23]}  d6 {[%clk 0:01:28]} 20. Rad1 {[%clk 0:01:09]}  Ne5 {[%clk 0:01:26]} 21. Nxe5 {[%clk 0:01:08]}  dxe5 {[%clk 0:01:26]} 22. Qb6 {[%clk 0:01:06]}  Bc8 {[%clk 0:01:23]} 23. Bb3 {[%clk 0:01:02]}  Kh8 {[%clk 0:01:17]} 24. Rd8 {[%clk 0:00:52]}  Be6 {[%clk 0:01:05]} 25. Rxa8 {[%clk 0:00:47]}  Rxa8 {[%clk 0:01:06]} 26. Bxe6 {[%clk 0:00:48]}  fxe6 {[%clk 0:01:06]} 27. Qxe6 {[%clk 0:00:48]}  Rf8 {[%clk 0:01:03]} 28. Qb6 {[%clk 0:00:35]}  h5 {[%clk 0:00:55]} 29. Rf1 {[%clk 0:00:28]}  Rf6 {[%clk 0:00:48]} 30. Qb7 {[%clk 0:00:21]}  Rg6 {[%clk 0:00:45]} 31. Kh1 {[%clk 0:00:21]}  Qg5 {[%clk 0:00:40]} 32. Rg1 {[%clk 0:00:21]}  Qd2 {[%clk 0:00:37]} 33. Qc8+ {[%clk 0:00:20]}  Kh7 {[%clk 0:00:37]} 34. Qf5 {[%clk 0:00:21]}  Kh6 {[%clk 0:00:32]} 35. f3 {[%clk 0:00:18]}  Qc3 {[%clk 0:00:27]} 36. h4 {[%clk 0:00:16]}  Qxa3 {[%clk 0:00:18]} 37. Qxe5 {[%clk 0:00:12]}  Qxb4 {[%clk 0:00:18]} 38. g4 {[%clk 0:00:11]}  Qb3 {[%clk 0:00:14]} 39. Qxh5# {[%clk 0:00:10]} 1-0


[Site "https://www.chess.com"]

[Event "Titled Tuesday Blitz August 09 Early 2022"]
[White "Bolourchifard, Farzad"]
[Black "Balint, Vilmos"]
[WhiteFideId "12510084"]
[BlackFideId "718050"]
[WhiteElo "2317"]
[BlackElo "2059"]
[Result "1-0"]
[Round "03"]
[TimeControl "180+1"]
[Date "2022.08.09"]
[WhiteClock "0:00:37"]
[BlackClock "0:01:20"]

1. e4 {[%clk 0:02:58]}  e6 {[%clk 0:02:59]} 2. d4 {[%clk 0:02:58]}  d5 {[%clk 0:02:59]} 3. exd5 {[%clk 0:02:59]}  exd5 {[%clk 0:02:59]} 4. Nf3 {[%clk 0:03:00]}  Nf6 {[%clk 0:02:56]} 5. Bg5 {[%clk 0:03:00]}  Be7 {[%clk 0:02:57]} 6. Bd3 {[%clk 0:03:01]}  O-O {[%clk 0:02:57]} 7. O-O {[%clk 0:03:01]}  Re8 {[%clk 0:02:58]} 8. c3 {[%clk 0:03:01]}  h6 {[%clk 0:02:58]} 9. Bh4 {[%clk 0:03:01]}  Nbd7 {[%clk 0:02:58]} 10. Nbd2 {[%clk 0:03:01]}  Nf8 {[%clk 0:02:57]} 11. Re1 {[%clk 0:03:01]}  Ng6 {[%clk 0:02:57]} 12. Bg3 {[%clk 0:03:01]}  Bd6 {[%clk 0:02:54]} 13. Ne5 {[%clk 0:02:53]}  Nf8 {[%clk 0:02:42]} 14. Qc2 {[%clk 0:02:48]}  c5 {[%clk 0:02:37]} 15. dxc5 {[%clk 0:02:42]}  Bxc5 {[%clk 0:02:37]} 16. Nb3 {[%clk 0:02:41]}  Bd6 {[%clk 0:02:37]} 17. Nd4 {[%clk 0:02:40]}  Be6 {[%clk 0:02:33]} 18. Rad1 {[%clk 0:02:25]}  a6 {[%clk 0:02:33]} 19. h3 {[%clk 0:02:15]}  Rc8 {[%clk 0:02:33]} 20. Bh4 {[%clk 0:01:56]}  N8d7 {[%clk 0:02:24]} 21. Bh7+ {[%clk 0:01:24]}  Kh8 {[%clk 0:02:19]} 22. Nxe6 {[%clk 0:01:23]}  Qe7 {[%clk 0:02:02]} 23. Nxd7 {[%clk 0:01:07]}  Qxd7 {[%clk 0:01:57]} 24. Bxf6 {[%clk 0:00:51]}  Rxe6 {[%clk 0:01:57]} 25. Bd4 {[%clk 0:00:49]}  Bc5 {[%clk 0:01:21]} 26. Bf5 {[%clk 0:00:37]}  Rxe1+ {[%clk 0:01:20]} 27. Rxe1 {[%clk 0:00:37]} 1-0


[Site "https://www.chess.com"]

[Event "Titled Tuesday Blitz August 09 Early 2022"]
[White "Bristy, Mukherjee"]
[Black "Shohat, Yotam"]
[WhiteFideId "25077325"]
[BlackFideId "2813955"]
[WhiteElo "1661"]
[BlackElo "2119"]
[Result "0-1"]
[Round "03"]
[TimeControl "180+1"]
[Date "2022.08.09"]
[WhiteClock "0:00:51"]
[BlackClock "0:00:13"]

1. d4 {[%clk 0:03:00]}  Nf6 {[%clk 0:02:59]} 2. c3 {[%clk 0:03:01]}  g6 {[%clk 0:02:52]} 3. Bg5 {[%clk 0:03:02]}  Bg7 {[%clk 0:02:51]} 4. e3 {[%clk 0:03:02]}  O-O {[%clk 0:02:51]} 5. Nd2 {[%clk 0:03:03]}  d5 {[%clk 0:02:49]} 6. h4 {[%clk 0:03:04]}  h6 {[%clk 0:02:36]} 7. Bf4 {[%clk 0:03:01]}  c5 {[%clk 0:02:32]} 8. dxc5 {[%clk 0:02:53]}  Nc6 {[%clk 0:02:32]} 9. Ngf3 {[%clk 0:02:52]}  Ng4 {[%clk 0:02:21]} 10. Nd4 {[%clk 0:02:35]}  e5 {[%clk 0:02:17]} 11. Nxc6 {[%clk 0:02:35]}  bxc6 {[%clk 0:02:18]} 12. Bg3 {[%clk 0:02:32]}  f5 {[%clk 0:02:00]} 13. h5 {[%clk 0:02:30]}  f4 {[%clk 0:01:57]} 14. Be2 {[%clk 0:02:03]}  fxg3 {[%clk 0:01:49]} 15. Bxg4 {[%clk 0:02:02]}  gxf2+ {[%clk 0:01:46]} 16. Kf1 {[%clk 0:02:02]}  Qg5 {[%clk 0:00:51]} 17. Bxc8 {[%clk 0:01:49]}  Raxc8 {[%clk 0:00:52]} 18. hxg6 {[%clk 0:01:45]}  Qxe3 {[%clk 0:00:33]} 19. Rh3 {[%clk 0:01:43]}  Qg5 {[%clk 0:00:27]} 20. Qc2 {[%clk 0:01:43]}  e4 {[%clk 0:00:26]} 21. Nb3 {[%clk 0:01:22]}  Qxg6 {[%clk 0:00:19]} 22. Rd1 {[%clk 0:01:22]}  Rf5 {[%clk 0:00:16]} 23. Rd2 {[%clk 0:01:19]}  Rcf8 {[%clk 0:00:16]} 24. Re2 {[%clk 0:01:10]}  Qxg2+ {[%clk 0:00:14]} 25. Kxg2 {[%clk 0:01:07]}  f1=Q+ {[%clk 0:00:15]} 26. Kh2 {[%clk 0:00:59]}  Be5+ {[%clk 0:00:15]} 27. Rg3+ {[%clk 0:00:58]}  Bxg3+ {[%clk 0:00:14]} 28. Kxg3 {[%clk 0:00:57]}  Rg5+ {[%clk 0:00:13]} 29. Kh4 {[%clk 0:00:52]}  Qf4+ {[%clk 0:00:12]} 30. Kh3 {[%clk 0:00:51]}  Qg3# {[%clk 0:00:13]} 0-1


[Site "https://www.chess.com"]

[Event "Titled Tuesday Blitz August 09 Early 2022"]
[White "Buscar, Michael"]
[Black "Stoleriu, George"]
[WhiteFideId "2603616"]
[BlackFideId "1227505"]
[WhiteElo "2010"]
[BlackElo "2194"]
[Result "0-1"]
[Round "03"]
[TimeControl "180+1"]
[Date "2022.08.09"]
[WhiteClock "0:00:08"]
[BlackClock "0:01:01"]

1. c4 {[%clk 0:02:53]}  e6 {[%clk 0:03:00]} 2. Nf3 {[%clk 0:02:53]}  Nf6 {[%clk 0:02:55]} 3. g3 {[%clk 0:02:53]}  b6 {[%clk 0:02:55]} 4. Bg2 {[%clk 0:02:53]}  Bb7 {[%clk 0:02:56]} 5. d4 {[%clk 0:02:53]}  c5 {[%clk 0:02:56]} 6. O-O {[%clk 0:02:48]}  cxd4 {[%clk 0:02:55]} 7. Nxd4 {[%clk 0:02:41]}  Bxg2 {[%clk 0:02:54]} 8. Kxg2 {[%clk 0:02:42]}  Be7 {[%clk 0:02:50]} 9. b3 {[%clk 0:02:34]}  O-O {[%clk 0:02:45]} 10. Bb2 {[%clk 0:02:32]}  d5 {[%clk 0:02:45]} 11. cxd5 {[%clk 0:02:24]}  Qxd5+ {[%clk 0:02:46]} 12. Nf3 {[%clk 0:02:23]}  Nc6 {[%clk 0:02:43]} 13. Nc3 {[%clk 0:02:19]}  Qxd1 {[%clk 0:02:36]} 14. Rfxd1 {[%clk 0:02:18]}  Rfd8 {[%clk 0:02:37]} 15. Nb5 {[%clk 0:02:14]}  Ne4 {[%clk 0:02:26]} 16. Rac1 {[%clk 0:01:47]}  Nb4 {[%clk 0:02:24]} 17. a3 {[%clk 0:01:41]}  Nd5 {[%clk 0:02:20]} 18. Nc7 {[%clk 0:01:34]}  Nxc7 {[%clk 0:02:17]} 19. Rxd8+ {[%clk 0:01:31]}  Bxd8 {[%clk 0:02:18]} 20. Ne5 {[%clk 0:01:28]}  Nd5 {[%clk 0:02:15]} 21. f3 {[%clk 0:01:24]}  Nc5 {[%clk 0:02:08]} 22. e4 {[%clk 0:01:22]}  Nf6 {[%clk 0:02:01]} 23. b4 {[%clk 0:01:20]}  Ncd7 {[%clk 0:01:49]} 24. Nc6 {[%clk 0:01:19]}  Kf8 {[%clk 0:01:34]} 25. Rd1 {[%clk 0:01:17]}  Ke8 {[%clk 0:01:26]} 26. g4 {[%clk 0:01:08]}  h6 {[%clk 0:01:23]} 27. h4 {[%clk 0:01:08]}  Rc8 {[%clk 0:01:19]} 28. b5 {[%clk 0:01:02]}  a6 {[%clk 0:01:17]} 29. a4 {[%clk 0:00:47]}  axb5 {[%clk 0:01:15]} 30. axb5 {[%clk 0:00:47]}  Ra8 {[%clk 0:01:16]} 31. Bd4 {[%clk 0:00:16]}  Ra2+ {[%clk 0:01:09]} 32. Kg1 {[%clk 0:00:17]}  Bc7 {[%clk 0:01:06]} 33. g5 {[%clk 0:00:15]}  hxg5 {[%clk 0:01:05]} 34. hxg5 {[%clk 0:00:15]}  Nh5 {[%clk 0:01:06]} 35. Be3 {[%clk 0:00:14]}  Nf4 {[%clk 0:01:03]} 36. Bd4 {[%clk 0:00:09]}  Ne2+ {[%clk 0:01:01]} 37. Kf1 {[%clk 0:00:09]}  Nxd4 {[%clk 0:01:02]} 38. Rxd4 {[%clk 0:00:08]}  Ne5 {[%clk 0:01:01]} 0-1


[Site "https://www.chess.com"]

[Event "Titled Tuesday Blitz August 09 Early 2022"]
[White "Butti, Enrique"]
[Black "Kostiukov, Alexandr"]
[WhiteFideId "3700470"]
[BlackFideId "14108100"]
[WhiteElo "2080"]
[BlackElo "2202"]
[Result "0-1"]
[Round "03"]
[TimeControl "180+1"]
[Date "2022.08.09"]
[WhiteClock "0:00:01"]
[BlackClock "0:00:20"]

1. d4 {[%clk 0:03:00]}  g6 {[%clk 0:02:52]} 2. e4 {[%clk 0:02:57]}  Bg7 {[%clk 0:02:51]} 3. Nc3 {[%clk 0:02:57]}  d6 {[%clk 0:02:51]} 4. Be3 {[%clk 0:02:51]}  e5 {[%clk 0:02:50]} 5. Nge2 {[%clk 0:02:43]}  exd4 {[%clk 0:02:47]} 6. Nxd4 {[%clk 0:02:41]}  Nc6 {[%clk 0:02:46]} 7. Qd2 {[%clk 0:02:39]}  Nge7 {[%clk 0:02:46]} 8. f3 {[%clk 0:02:30]}  O-O {[%clk 0:02:45]} 9. Be2 {[%clk 0:02:25]}  f5 {[%clk 0:02:44]} 10. exf5 {[%clk 0:02:17]}  Nxf5 {[%clk 0:02:42]} 11. Nxf5 {[%clk 0:02:15]}  Bxf5 {[%clk 0:02:42]} 12. O-O {[%clk 0:02:13]}  Qd7 {[%clk 0:02:38]} 13. Nd5 {[%clk 0:02:06]}  Rae8 {[%clk 0:02:30]} 14. Rfe1 {[%clk 0:01:56]}  b6 {[%clk 0:01:54]} 15. c3 {[%clk 0:01:40]}  Ne5 {[%clk 0:01:49]} 16. f4 {[%clk 0:01:33]}  Ng4 {[%clk 0:01:47]} 17. Bxg4 {[%clk 0:01:32]}  Bxg4 {[%clk 0:01:47]} 18. Bd4 {[%clk 0:01:31]}  c6 {[%clk 0:01:22]} 19. Bxg7 {[%clk 0:01:29]}  Qxg7 {[%clk 0:01:21]} 20. Nb4 {[%clk 0:01:26]}  Qd7 {[%clk 0:01:12]} 21. Rxe8 {[%clk 0:01:22]}  Rxe8 {[%clk 0:01:11]} 22. Re1 {[%clk 0:01:21]}  a5 {[%clk 0:01:03]} 23. Nd3 {[%clk 0:01:15]}  Bf5 {[%clk 0:01:00]} 24. Nf2 {[%clk 0:00:56]}  d5 {[%clk 0:00:53]} 25. Re5 {[%clk 0:00:08]}  Rxe5 {[%clk 0:00:45]} 26. fxe5 {[%clk 0:00:07]}  c5 {[%clk 0:00:45]} 27. Qf4 {[%clk 0:00:03]}  d4 {[%clk 0:00:42]} 28. g4 {[%clk 0:00:01]}  Bb1 {[%clk 0:00:20]} 0-1


[Site "https://www.chess.com"]